[Event "Titled Tuesday Blitz April 26 Late 2022"]
[White "Quesada Perez, Yuniesky"]
[Black "Ezat, Mohamed"]
[WhiteFideId "3504409"]
[BlackFideId "10600906"]
[WhiteElo "2622"]
[BlackElo "2386"]
[Result "1-0"]
[Round "03"]
[TimeControl "180+1"]
[Date "2022.04.26"]
[WhiteClock "0:00:07"]
[BlackClock "0:00:01"]

1. e4 {[%clk 0:03:00]}  c6 {[%clk 0:02:58]} 2. d4 {[%clk 0:02:58]}  d5 {[%clk 0:02:58]} 3. exd5 {[%clk 0:02:57]}  cxd5 {[%clk 0:02:58]} 4. c4 {[%clk 0:02:58]}  Nf6 {[%clk 0:02:58]} 5. Nc3 {[%clk 0:02:58]}  g6 {[%clk 0:02:57]} 6. Nf3 {[%clk 0:02:55]}  Bg7 {[%clk 0:02:57]} 7. Bg5 {[%clk 0:02:45]}  O-O {[%clk 0:02:56]} 8. h3 {[%clk 0:02:38]}  Ne4 {[%clk 0:02:53]} 9. Be3 {[%clk 0:02:37]}  Nxc3 {[%clk 0:02:46]} 10. bxc3 {[%clk 0:02:38]}  Qa5 {[%clk 0:02:38]} 11. Qb3 {[%clk 0:02:34]}  Be6 {[%clk 0:02:32]} 12. Rc1 {[%clk 0:01:43]}  dxc4 {[%clk 0:02:27]} 13. Qxb7 {[%clk 0:01:43]}  Nd7 {[%clk 0:02:22]} 14. Ng5 {[%clk 0:01:32]}  Qd5 {[%clk 0:02:11]} 15. Qa6 {[%clk 0:01:22]}  Nb6 {[%clk 0:02:10]} 16. Be2 {[%clk 0:01:15]}  Qd7 {[%clk 0:02:01]} 17. Nxe6 {[%clk 0:01:12]}  Qxe6 {[%clk 0:01:59]} 18. O-O {[%clk 0:01:10]}  Qd7 {[%clk 0:01:52]} 19. Bxc4 {[%clk 0:01:04]}  Nxc4 {[%clk 0:01:42]} 20. Qxc4 {[%clk 0:01:05]}  Rab8 {[%clk 0:01:42]} 21. Rfd1 {[%clk 0:01:01]}  Rb2 {[%clk 0:01:41]} 22. Rd2 {[%clk 0:00:52]}  Rxd2 {[%clk 0:01:37]} 23. Bxd2 {[%clk 0:00:52]}  Rb8 {[%clk 0:01:38]} 24. Be3 {[%clk 0:00:41]}  h6 {[%clk 0:01:32]} 25. a4 {[%clk 0:00:40]}  Rc8 {[%clk 0:01:24]} 26. Qb5 {[%clk 0:00:36]}  Qd6 {[%clk 0:01:19]} 27. a5 {[%clk 0:00:31]}  a6 {[%clk 0:01:02]} 28. Qb6 {[%clk 0:00:27]}  Rc6 {[%clk 0:00:58]} 29. Qb7 {[%clk 0:00:26]}  e5 {[%clk 0:00:55]} 30. dxe5 {[%clk 0:00:23]}  Bxe5 {[%clk 0:00:54]} 31. c4 {[%clk 0:00:18]}  Rxc4 {[%clk 0:00:44]} 32. Rb1 {[%clk 0:00:14]}  Rc6 {[%clk 0:00:40]} 33. Bxh6 {[%clk 0:00:12]}  Qd3 {[%clk 0:00:23]} 34. Be3 {[%clk 0:00:12]}  Rc7 {[%clk 0:00:20]} 35. Qb8+ {[%clk 0:00:11]}  Kg7 {[%clk 0:00:20]} 36. Qb6 {[%clk 0:00:07]}  Rd7 {[%clk 0:00:15]} 37. g3 {[%clk 0:00:06]}  Re7 {[%clk 0:00:13]} 38. Qb3 {[%clk 0:00:04]}  Qe4 {[%clk 0:00:10]} 39. Rc1 {[%clk 0:00:04]}  Re6 {[%clk 0:00:08]} 40. Qc4 {[%clk 0:00:03]}  Qf5 {[%clk 0:00:07]} 41. Qg4 {[%clk 0:00:02]}  Qxg4 {[%clk 0:00:07]} 42. hxg4 {[%clk 0:00:03]}  Rd6 {[%clk 0:00:06]} 43. Rc5 {[%clk 0:00:03]}  Bf6 {[%clk 0:00:06]} 44. Rc4 {[%clk 0:00:03]}  Be7 {[%clk 0:00:06]} 45. Rc7 {[%clk 0:00:03]}  Re6 {[%clk 0:00:06]} 46. Ra7 {[%clk 0:00:04]}  Bb4 {[%clk 0:00:06]} 47. Bd4+ {[%clk 0:00:04]}  Kh6 {[%clk 0:00:05]} 48. Bb6 {[%clk 0:00:05]}  Kg5 {[%clk 0:00:05]} 49. Rxa6 {[%clk 0:00:06]}  Kxg4 {[%clk 0:00:05]} 50. Kg2 {[%clk 0:00:06]}  Re2 {[%clk 0:00:04]} 51. Ra7 {[%clk 0:00:06]}  f5 {[%clk 0:00:05]} 52. Rg7 {[%clk 0:00:06]}  f4 {[%clk 0:00:06]} 53. Rxg6+ {[%clk 0:00:05]}  Kf5 {[%clk 0:00:02]} 54. Rc6 {[%clk 0:00:06]}  fxg3 {[%clk 0:00:01]} 55. Kxg3 {[%clk 0:00:07]} 1-0


[Site "https://www.chess.com"]

[Event "Titled Tuesday Blitz April 26 Late 2022"]
[White "Rastbod, Ali"]
[Black "Szalay, Karoly"]
[WhiteFideId "12567477"]
[BlackFideId "2600544"]
[WhiteElo "2147"]
[BlackElo "2432"]
[Result "1-0"]
[Round "03"]
[TimeControl "180+1"]
[Date "2022.04.26"]
[WhiteClock "0:00:18"]
[BlackClock "0:00:22"]

1. e4 {[%clk 0:03:00]}  e5 {[%clk 0:02:59]} 2. Nf3 {[%clk 0:03:00]}  Nc6 {[%clk 0:03:00]} 3. Nc3 {[%clk 0:03:01]}  Nf6 {[%clk 0:03:00]} 4. d4 {[%clk 0:03:02]}  exd4 {[%clk 0:03:01]} 5. Nxd4 {[%clk 0:03:02]}  Bc5 {[%clk 0:03:01]} 6. Be3 {[%clk 0:03:02]}  Bb6 {[%clk 0:03:00]} 7. Qd2 {[%clk 0:03:03]}  d6 {[%clk 0:02:58]} 8. O-O-O {[%clk 0:03:03]}  Bd7 {[%clk 0:02:57]} 9. f3 {[%clk 0:03:03]}  Qe7 {[%clk 0:02:56]} 10. g4 {[%clk 0:03:02]}  O-O-O {[%clk 0:02:54]} 11. g5 {[%clk 0:03:03]}  Nh5 {[%clk 0:02:54]} 12. Nd5 {[%clk 0:03:03]}  Qf8 {[%clk 0:02:53]} 13. Nb5 {[%clk 0:02:48]}  Be6 {[%clk 0:02:32]} 14. Bxb6 {[%clk 0:02:45]}  cxb6 {[%clk 0:02:32]} 15. f4 {[%clk 0:02:13]}  Kb8 {[%clk 0:01:46]} 16. Be2 {[%clk 0:02:02]}  g6 {[%clk 0:01:47]} 17. Bxh5 {[%clk 0:02:01]}  gxh5 {[%clk 0:01:48]} 18. Nf6 {[%clk 0:01:58]}  h6 {[%clk 0:01:46]} 19. h4 {[%clk 0:01:56]}  d5 {[%clk 0:01:24]} 20. e5 {[%clk 0:01:34]}  d4 {[%clk 0:00:56]} 21. Nd6 {[%clk 0:01:25]}  Rxd6 {[%clk 0:00:56]} 22. exd6 {[%clk 0:01:26]}  Qxd6 {[%clk 0:00:57]} 23. Kb1 {[%clk 0:01:12]}  d3 {[%clk 0:00:44]} 24. Qxd3 {[%clk 0:01:07]}  Bxa2+ {[%clk 0:00:39]} 25. Ka1 {[%clk 0:01:07]}  Qxf4 {[%clk 0:00:40]} 26. Qd6+ {[%clk 0:00:55]}  Qxd6 {[%clk 0:00:40]} 27. Rxd6 {[%clk 0:00:56]}  Be6 {[%clk 0:00:38]} 28. Nxh5 {[%clk 0:00:54]}  hxg5 {[%clk 0:00:37]} 29. hxg5 {[%clk 0:00:55]}  Kc7 {[%clk 0:00:35]} 30. Rd2 {[%clk 0:00:54]}  Rg8 {[%clk 0:00:32]} 31. Rg1 {[%clk 0:00:53]}  Ne5 {[%clk 0:00:31]} 32. Rf2 {[%clk 0:00:49]}  Ng4 {[%clk 0:00:26]} 33. Nf6 {[%clk 0:00:23]}  Rxg5 {[%clk 0:00:19]} 34. Nxg4 {[%clk 0:00:23]}  Rxg4 {[%clk 0:00:20]} 35. Rxg4 {[%clk 0:00:23]}  Bxg4 {[%clk 0:00:21]} 36. Rxf7+ {[%clk 0:00:23]}  Bd7 {[%clk 0:00:21]} 37. b3 {[%clk 0:00:23]}  Kc6 {[%clk 0:00:22]} 38. Kb2 {[%clk 0:00:24]}  b5 {[%clk 0:00:23]} 39. Kc3 {[%clk 0:00:24]}  a5 {[%clk 0:00:24]} 40. Rf6+ {[%clk 0:00:24]}  Kc7 {[%clk 0:00:24]} 41. Kd4 {[%clk 0:00:24]}  b6 {[%clk 0:00:24]} 42. Kd5 {[%clk 0:00:23]}  Be8 {[%clk 0:00:25]} 43. Rf8 {[%clk 0:00:21]}  Bc6+ {[%clk 0:00:25]} 44. Ke5 {[%clk 0:00:20]}  a4 {[%clk 0:00:25]} 45. bxa4 {[%clk 0:00:18]}  bxa4 {[%clk 0:00:26]} 46. Kd4 {[%clk 0:00:18]}  Kd6 {[%clk 0:00:26]} 47. Kc4 {[%clk 0:00:17]}  Bd7 {[%clk 0:00:24]} 48. Kb4 {[%clk 0:00:17]}  b5 {[%clk 0:00:23]} 49. Rf6+ {[%clk 0:00:17]}  Kd5 {[%clk 0:00:23]} 50. Rh6 {[%clk 0:00:18]}  Kd4 {[%clk 0:00:22]} 51. Rd6+ {[%clk 0:00:18]} 1-0


[Site "https://www.chess.com"]

[Event "Titled Tuesday Blitz April 26 Late 2022"]
[White "Rasulov, Vugar"]
[Black "Zumsande, Martin"]
[WhiteFideId "13402390"]
[BlackFideId "4651324"]
[WhiteElo "2560"]
[BlackElo "2368"]
[Result "1-0"]
[Round "03"]
[TimeControl "180+1"]
[Date "2022.04.26"]
[WhiteClock "0:01:49"]
[BlackClock "0:00:03"]

1. d4 {[%clk 0:03:00]}  d5 {[%clk 0:02:59]} 2. c4 {[%clk 0:03:01]}  e6 {[%clk 0:02:56]} 3. Nf3 {[%clk 0:03:01]}  Nf6 {[%clk 0:02:56]} 4. Nc3 {[%clk 0:03:01]}  Be7 {[%clk 0:02:56]} 5. Qc2 {[%clk 0:03:02]}  O-O {[%clk 0:02:51]} 6. cxd5 {[%clk 0:03:01]}  exd5 {[%clk 0:02:50]} 7. Bg5 {[%clk 0:03:02]}  c5 {[%clk 0:02:48]} 8. e3 {[%clk 0:03:00]}  Nc6 {[%clk 0:02:48]} 9. dxc5 {[%clk 0:03:00]}  Be6 {[%clk 0:02:44]} 10. a3 {[%clk 0:02:52]}  Bxc5 {[%clk 0:02:38]} 11. Bd3 {[%clk 0:02:53]}  h6 {[%clk 0:02:36]} 12. Bh4 {[%clk 0:02:53]}  Be7 {[%clk 0:02:33]} 13. O-O {[%clk 0:02:53]}  Rc8 {[%clk 0:02:33]} 14. Rad1 {[%clk 0:02:52]}  Qb6 {[%clk 0:02:28]} 15. Na4 {[%clk 0:02:40]}  Qa5 {[%clk 0:02:19]} 16. b4 {[%clk 0:02:40]}  Nxb4 {[%clk 0:01:53]} 17. axb4 {[%clk 0:02:41]}  Qxb4 {[%clk 0:01:53]} 18. Qa2 {[%clk 0:02:29]}  d4 {[%clk 0:01:53]} 19. Qa1 {[%clk 0:02:28]}  dxe3 {[%clk 0:01:48]} 20. fxe3 {[%clk 0:02:28]}  Bb3 {[%clk 0:01:33]} 21. Nb2 {[%clk 0:02:28]}  Bxd1 {[%clk 0:01:27]} 22. Nxd1 {[%clk 0:02:29]}  Rfd8 {[%clk 0:01:14]} 23. Nf2 {[%clk 0:02:23]}  Qc3 {[%clk 0:00:59]} 24. Qb1 {[%clk 0:02:14]}  b6 {[%clk 0:00:56]} 25. Bf5 {[%clk 0:02:10]}  Rc5 {[%clk 0:00:54]} 26. e4 {[%clk 0:02:10]}  Re8 {[%clk 0:00:42]} 27. e5 {[%clk 0:02:07]}  Nd5 {[%clk 0:00:41]} 28. Ne4 {[%clk 0:02:06]}  Qe3+ {[%clk 0:00:39]} 29. Bf2 {[%clk 0:02:06]}  Qf4 {[%clk 0:00:30]} 30. Nxc5 {[%clk 0:02:06]}  bxc5 {[%clk 0:00:26]} 31. Be4 {[%clk 0:01:57]}  Nc3 {[%clk 0:00:26]} 32. Bh7+ {[%clk 0:01:58]}  Kh8 {[%clk 0:00:26]} 33. Qc2 {[%clk 0:01:59]}  Nb5 {[%clk 0:00:18]} 34. Bd3 {[%clk 0:01:57]}  Nd4 {[%clk 0:00:19]} 35. Nxd4 {[%clk 0:01:55]}  cxd4 {[%clk 0:00:19]} 36. Qc4 {[%clk 0:01:53]}  Qxe5 {[%clk 0:00:18]} 37. Qxf7 {[%clk 0:01:52]}  Bf6 {[%clk 0:00:15]} 38. Qg6 {[%clk 0:01:51]}  Kg8 {[%clk 0:00:16]} 39. h4 {[%clk 0:01:49]}  Rc8 {[%clk 0:00:14]} 40. Re1 {[%clk 0:01:49]}  Qc5 {[%clk 0:00:11]} 41. Re8+ {[%clk 0:01:47]}  Rxe8 {[%clk 0:00:09]} 42. Qxe8+ {[%clk 0:01:47]}  Qf8 {[%clk 0:00:09]} 43. Bc4+ {[%clk 0:01:48]}  Kh8 {[%clk 0:00:05]} 44. Qxf8+ {[%clk 0:01:48]}  Kh7 {[%clk 0:00:05]} 45. Bd3+ {[%clk 0:01:49]}  g6 {[%clk 0:00:05]} 46. Qxf6 {[%clk 0:01:50]}  h5 {[%clk 0:00:02]} 47. Bxg6+ {[%clk 0:01:51]}  Kh6 {[%clk 0:00:03]} 48. Bf5# {[%clk 0:01:49]} 1-0


[Site "https://www.chess.com"]

[Event "Titled Tuesday Blitz April 26 Late 2022"]
[White "Remolar Gallen, Jose"]
[Black "Carrasco Miranda, Andres"]
[WhiteFideId "2215187"]
[BlackFideId "3405990"]
[WhiteElo "2205"]
[BlackElo "2177"]
[Result "1-0"]
[Round "03"]
[TimeControl "180+1"]
[Date "2022.04.26"]
[WhiteClock "0:00:47"]
[BlackClock "0:00:03"]

1. d4 {[%clk 0:03:00]}  Nf6 {[%clk 0:02:58]} 2. Nf3 {[%clk 0:03:00]}  g6 {[%clk 0:02:56]} 3. Nbd2 {[%clk 0:03:00]}  d5 {[%clk 0:02:54]} 4. b3 {[%clk 0:02:59]}  Bg7 {[%clk 0:02:53]} 5. Bb2 {[%clk 0:02:59]}  O-O {[%clk 0:02:43]} 6. e3 {[%clk 0:02:59]}  b6 {[%clk 0:02:39]} 7. Be2 {[%clk 0:02:58]}  c5 {[%clk 0:02:39]} 8. O-O {[%clk 0:02:58]}  Nc6 {[%clk 0:02:35]} 9. Ne5 {[%clk 0:02:56]}  Nxe5 {[%clk 0:02:35]} 10. dxe5 {[%clk 0:02:57]}  Nd7 {[%clk 0:02:35]} 11. f4 {[%clk 0:02:57]}  e6 {[%clk 0:02:33]} 12. Nf3 {[%clk 0:02:51]}  a5 {[%clk 0:02:31]} 13. c4 {[%clk 0:02:48]}  Bb7 {[%clk 0:02:24]} 14. cxd5 {[%clk 0:02:47]}  Bxd5 {[%clk 0:02:25]} 15. Qc2 {[%clk 0:02:39]}  a4 {[%clk 0:02:23]} 16. bxa4 {[%clk 0:02:22]}  Qc7 {[%clk 0:01:57]} 17. Bb5 {[%clk 0:02:21]}  Nb8 {[%clk 0:01:57]} 18. Rad1 {[%clk 0:02:19]}  Nc6 {[%clk 0:01:56]} 19. e4 {[%clk 0:02:19]}  Nb4 {[%clk 0:01:55]} 20. Qe2 {[%clk 0:01:46]}  Bxa2 {[%clk 0:01:52]} 21. Rd7 {[%clk 0:01:40]}  Qc8 {[%clk 0:01:49]} 22. f5 {[%clk 0:01:32]}  Bb3 {[%clk 0:00:55]} 23. Ng5 {[%clk 0:01:21]}  Bxa4 {[%clk 0:00:50]} 24. fxe6 {[%clk 0:01:21]}  fxe6 {[%clk 0:00:40]} 25. Rxf8+ {[%clk 0:01:20]}  Bxf8 {[%clk 0:00:38]} 26. Qf3 {[%clk 0:01:06]}  Qe8 {[%clk 0:00:07]} 27. Nxh7 {[%clk 0:00:46]}  Bxb5 {[%clk 0:00:05]} 28. Nf6+ {[%clk 0:00:46]}  Kh8 {[%clk 0:00:03]} 29. Rh7# {[%clk 0:00:47]} 1-0


[Site "https://www.chess.com"]

[Event "Titled Tuesday Blitz April 26 Late 2022"]
[White "Ricaurte Lopez, Juan Carlos"]
[Black "Menna Barreto, Felipe Kubiaki"]
[WhiteFideId "3600327"]
[BlackFideId "2119757"]
[WhiteElo "2209"]
[BlackElo "2261"]
[Result "0-1"]
[Round "03"]
[TimeControl "180+1"]
[Date "2022.04.26"]
[WhiteClock "0:00:04"]
[BlackClock "0:01:01"]

1. e4 {[%clk 0:03:00]}  d6 {[%clk 0:03:00]} 2. d4 {[%clk 0:03:00]}  Nf6 {[%clk 0:02:59]} 3. Nc3 {[%clk 0:03:00]}  e5 {[%clk 0:03:00]} 4. dxe5 {[%clk 0:02:59]}  dxe5 {[%clk 0:03:01]} 5. Qxd8+ {[%clk 0:02:58]}  Kxd8 {[%clk 0:03:01]} 6. Bc4 {[%clk 0:02:57]}  Be6 {[%clk 0:03:01]} 7. Bxe6 {[%clk 0:02:56]}  fxe6 {[%clk 0:03:02]} 8. Be3 {[%clk 0:02:49]}  Bd6 {[%clk 0:02:59]} 9. f3 {[%clk 0:02:47]}  Ke7 {[%clk 0:02:58]} 10. O-O-O {[%clk 0:02:46]}  a6 {[%clk 0:02:54]} 11. h4 {[%clk 0:02:44]}  c5 {[%clk 0:02:46]} 12. h5 {[%clk 0:02:41]}  h6 {[%clk 0:02:42]} 13. Na4 {[%clk 0:02:28]}  Nbd7 {[%clk 0:02:40]} 14. Ne2 {[%clk 0:02:09]}  b5 {[%clk 0:02:38]} 15. Nac3 {[%clk 0:02:05]}  c4 {[%clk 0:02:25]} 16. a3 {[%clk 0:01:59]}  Rab8 {[%clk 0:02:23]} 17. Kb1 {[%clk 0:01:46]}  a5 {[%clk 0:02:22]} 18. Na2 {[%clk 0:01:30]}  b4 {[%clk 0:02:22]} 19. axb4 {[%clk 0:01:19]}  axb4 {[%clk 0:02:23]} 20. b3 {[%clk 0:01:11]}  c3 {[%clk 0:02:16]} 21. Rd3 {[%clk 0:01:06]}  Rb5 {[%clk 0:02:06]} 22. Rhd1 {[%clk 0:00:58]}  Bc5 {[%clk 0:02:03]} 23. Bxc5+ {[%clk 0:00:53]}  Nxc5 {[%clk 0:02:04]} 24. Rd6 {[%clk 0:00:45]}  Ra8 {[%clk 0:01:58]} 25. Rc6 {[%clk 0:00:41]}  Rba5 {[%clk 0:01:53]} 26. Nec1 {[%clk 0:00:36]}  Ncxe4 {[%clk 0:01:52]} 27. fxe4 {[%clk 0:00:23]}  Nxe4 {[%clk 0:01:53]} 28. Rc4 {[%clk 0:00:21]}  Nd2+ {[%clk 0:01:51]} 29. Ka1 {[%clk 0:00:17]}  e4 {[%clk 0:01:41]} 30. Rxb4 {[%clk 0:00:14]}  e3 {[%clk 0:01:41]} 31. Re1 {[%clk 0:00:12]}  Re5 {[%clk 0:01:26]} 32. Rb7+ {[%clk 0:00:09]}  Kd6 {[%clk 0:01:23]} 33. Rxg7 {[%clk 0:00:06]}  Rxh5 {[%clk 0:01:06]} 34. Rg3 {[%clk 0:00:05]}  Rha5 {[%clk 0:01:00]} 35. Rgxe3 {[%clk 0:00:04]}  e5 {[%clk 0:01:01]} 36. Rxc3 {[%clk 0:00:04]}  e4 {[%clk 0:01:01]} 0-1


[Site "https://www.chess.com"]

[Event "Titled Tuesday Blitz April 26 Late 2022"]
[White "Rosenberg, Evan S"]
[Black "Veiga, Emerson de Sousa"]
[WhiteFideId "2019299"]
[BlackFideId "2151898"]
[WhiteElo "2330"]
[BlackElo "2034"]
[Result "1-0"]
[Round "03"]
[TimeControl "180+1"]
[Date "2022.04.26"]
[WhiteClock "0:00:47"]
[BlackClock "0:00:59"]

1. Nf3 {[%clk 0:02:59]}  d5 {[%clk 0:02:57]} 2. d4 {[%clk 0:02:58]}  Nf6 {[%clk 0:02:49]} 3. c4 {[%clk 0:02:58]}  e6 {[%clk 0:02:46]} 4. g3 {[%clk 0:02:57]}  Bb4+ {[%clk 0:02:46]} 5. Nc3 {[%clk 0:02:57]}  O-O {[%clk 0:02:45]} 6. Bg2 {[%clk 0:02:57]}  c5 {[%clk 0:02:43]} 7. a3 {[%clk 0:02:52]}  cxd4 {[%clk 0:02:40]} 8. axb4 {[%clk 0:02:50]}  dxc3 {[%clk 0:02:39]} 9. bxc3 {[%clk 0:02:51]}  dxc4 {[%clk 0:02:40]} 10. O-O {[%clk 0:02:48]}  Nd5 {[%clk 0:02:29]} 11. Qc2 {[%clk 0:02:38]}  b5 {[%clk 0:02:29]} 12. Rd1 {[%clk 0:02:30]}  Qf6 {[%clk 0:02:27]} 13. Ng5 {[%clk 0:02:24]}  g6 {[%clk 0:02:16]} 14. Rxd5 {[%clk 0:01:53]}  exd5 {[%clk 0:02:12]} 15. Bxd5 {[%clk 0:01:53]}  Nc6 {[%clk 0:02:12]} 16. Ne4 {[%clk 0:01:40]}  Qe7 {[%clk 0:01:38]} 17. Bxc6 {[%clk 0:01:39]}  Bf5 {[%clk 0:01:34]} 18. Bxa8 {[%clk 0:01:23]}  Rxa8 {[%clk 0:01:35]} 19. f3 {[%clk 0:01:22]}  Qe6 {[%clk 0:01:29]} 20. g4 {[%clk 0:01:18]}  Bxe4 {[%clk 0:01:27]} 21. Qxe4 {[%clk 0:01:19]}  Qc8 {[%clk 0:01:16]} 22. Bh6 {[%clk 0:01:12]}  a5 {[%clk 0:01:09]} 23. Qe5 {[%clk 0:01:07]}  f6 {[%clk 0:01:09]} 24. Qxf6 {[%clk 0:01:02]}  Ra7 {[%clk 0:01:07]} 25. Rxa5 {[%clk 0:01:00]}  Rf7 {[%clk 0:01:07]} 26. Qe5 {[%clk 0:00:52]}  Rb7 {[%clk 0:01:03]} 27. Rxb5 {[%clk 0:00:46]}  Rxb5 {[%clk 0:00:59]} 28. Qg7# {[%clk 0:00:47]} 1-0


[Site "https://www.chess.com"]

[Event "Titled Tuesday Blitz April 26 Late 2022"]
[White "Rustemov, Alexander"]
[Black "Xiong, Jeffery"]
[WhiteFideId "4119002"]
[BlackFideId "2047640"]
[WhiteElo "2858"]
[BlackElo "2727"]
[Result "1-0"]
[Round "03"]
[TimeControl "180+1"]
[Date "2022.04.26"]
[WhiteClock "0:01:13"]
[BlackClock "0:00:54"]

1. d4 {[%clk 0:03:00]}  g6 {[%clk 0:02:58]} 2. c4 {[%clk 0:03:01]}  Bg7 {[%clk 0:02:58]} 3. Nf3 {[%clk 0:03:01]}  d6 {[%clk 0:02:58]} 4. g3 {[%clk 0:03:01]}  Nc6 {[%clk 0:02:59]} 5. Bg2 {[%clk 0:03:01]}  Bd7 {[%clk 0:02:59]} 6. Nc3 {[%clk 0:03:02]}  Qc8 {[%clk 0:03:00]} 7. O-O {[%clk 0:03:02]}  Bh3 {[%clk 0:03:00]} 8. e4 {[%clk 0:03:00]}  h5 {[%clk 0:02:59]} 9. Bxh3 {[%clk 0:02:57]}  Qxh3 {[%clk 0:03:00]} 10. d5 {[%clk 0:02:57]}  Ne5 {[%clk 0:03:00]} 11. Ng5 {[%clk 0:02:57]}  Qd7 {[%clk 0:02:56]} 12. f4 {[%clk 0:02:45]}  Ng4 {[%clk 0:02:45]} 13. h3 {[%clk 0:02:44]}  N4h6 {[%clk 0:02:45]} 14. Be3 {[%clk 0:02:40]}  c5 {[%clk 0:02:37]} 15. Kg2 {[%clk 0:02:18]}  e6 {[%clk 0:02:30]} 16. dxe6 {[%clk 0:02:04]}  fxe6 {[%clk 0:02:31]} 17. Nb5 {[%clk 0:02:04]}  Rd8 {[%clk 0:02:30]} 18. Nxe6 {[%clk 0:02:02]}  Nf6 {[%clk 0:02:15]} 19. Nxd8 {[%clk 0:01:58]}  Nxe4 {[%clk 0:02:07]} 20. Qd3 {[%clk 0:01:48]}  Nxg3 {[%clk 0:02:01]} 21. Kxg3 {[%clk 0:01:24]}  Nf5+ {[%clk 0:01:58]} 22. Kh2 {[%clk 0:01:22]}  Kxd8 {[%clk 0:01:59]} 23. Rad1 {[%clk 0:01:20]}  Bf8 {[%clk 0:00:54]} 24. Bxc5 {[%clk 0:01:13]} 1-0


[Site "https://www.chess.com"]

[Event "Titled Tuesday Blitz April 26 Late 2022"]
[White "Salimova, Nurgyul"]
[Black "Ouellet, Maili-Jade"]
[WhiteFideId "2915138"]
[BlackFideId "2620472"]
[WhiteElo "2185"]
[BlackElo "1899"]
[Result "1-0"]
[Round "03"]
[TimeControl "180+1"]
[Date "2022.04.26"]
[WhiteClock "0:01:42"]
[BlackClock "0:00:53"]

1. d4 {[%clk 0:03:00]}  d5 {[%clk 0:02:59]} 2. c4 {[%clk 0:02:56]}  e6 {[%clk 0:02:59]} 3. Nf3 {[%clk 0:02:55]}  Nf6 {[%clk 0:02:59]} 4. g3 {[%clk 0:02:55]}  Be7 {[%clk 0:02:58]} 5. Bg2 {[%clk 0:02:54]}  O-O {[%clk 0:02:58]} 6. Nc3 {[%clk 0:02:53]}  dxc4 {[%clk 0:02:58]} 7. Ne5 {[%clk 0:02:53]}  Nc6 {[%clk 0:02:57]} 8. Bxc6 {[%clk 0:02:53]}  bxc6 {[%clk 0:02:58]} 9. Nxc6 {[%clk 0:02:54]}  Qe8 {[%clk 0:02:57]} 10. Nxe7+ {[%clk 0:02:54]}  Qxe7 {[%clk 0:02:58]} 11. Qa4 {[%clk 0:02:55]}  c5 {[%clk 0:02:40]} 12. dxc5 {[%clk 0:02:53]}  Qxc5 {[%clk 0:02:36]} 13. Be3 {[%clk 0:02:53]}  Qc7 {[%clk 0:02:34]} 14. O-O-O {[%clk 0:02:50]}  Bb7 {[%clk 0:02:26]} 15. f3 {[%clk 0:02:49]}  Nd5 {[%clk 0:02:22]} 16. Bd4 {[%clk 0:02:48]}  Rfd8 {[%clk 0:02:11]} 17. Nxd5 {[%clk 0:02:40]}  Bxd5 {[%clk 0:02:08]} 18. Bc3 {[%clk 0:02:39]}  e5 {[%clk 0:02:04]} 19. Ba5 {[%clk 0:02:26]}  Qc5 {[%clk 0:01:44]} 20. Bxd8 {[%clk 0:02:24]}  Rxd8 {[%clk 0:01:45]} 21. e4 {[%clk 0:01:45]}  c3 {[%clk 0:00:53]} 22. Rxd5 {[%clk 0:01:42]}  cxb2+ {[%clk 0:00:53]} 23. Kb1 {[%clk 0:01:42]} 1-0


[Site "https://www.chess.com"]

[Event "Titled Tuesday Blitz April 26 Late 2022"]
[White "Schekachikhin, Maksim"]
[Black "Bachmann, Axel"]
[WhiteFideId "24177830"]
[BlackFideId "3700488"]
[WhiteElo "2230"]
[BlackElo "2587"]
[Result "1-0"]
[Round "03"]
[TimeControl "180+1"]
[Date "2022.04.26"]
[WhiteClock "0:00:05"]
[BlackClock "0:00:04"]

1. d4 {[%clk 0:03:00]}  Nf6 {[%clk 0:02:48]} 2. c4 {[%clk 0:02:59]}  g6 {[%clk 0:02:48]} 3. Nc3 {[%clk 0:02:59]}  Bg7 {[%clk 0:02:48]} 4. e4 {[%clk 0:02:59]}  d6 {[%clk 0:02:48]} 5. Nf3 {[%clk 0:02:59]}  O-O {[%clk 0:02:48]} 6. Be2 {[%clk 0:03:00]}  Na6 {[%clk 0:02:49]} 7. O-O {[%clk 0:02:59]}  e5 {[%clk 0:02:49]} 8. Re1 {[%clk 0:02:58]}  Qe8 {[%clk 0:02:48]} 9. Qc2 {[%clk 0:02:52]}  Bg4 {[%clk 0:02:28]} 10. d5 {[%clk 0:02:46]}  Nb4 {[%clk 0:02:21]} 11. Qd1 {[%clk 0:02:44]}  a5 {[%clk 0:02:20]} 12. Be3 {[%clk 0:02:43]}  Na6 {[%clk 0:02:17]} 13. Nd2 {[%clk 0:02:43]}  Bd7 {[%clk 0:02:15]} 14. b3 {[%clk 0:02:43]}  b6 {[%clk 0:02:15]} 15. a3 {[%clk 0:02:43]}  h5 {[%clk 0:02:11]} 16. Rb1 {[%clk 0:02:39]}  Ng4 {[%clk 0:02:11]} 17. Bxg4 {[%clk 0:02:36]}  hxg4 {[%clk 0:02:11]} 18. b4 {[%clk 0:02:36]}  f5 {[%clk 0:02:09]} 19. Bg5 {[%clk 0:02:17]}  axb4 {[%clk 0:02:04]} 20. axb4 {[%clk 0:02:16]}  f4 {[%clk 0:01:42]} 21. Qb3 {[%clk 0:01:44]}  Kf7 {[%clk 0:01:36]} 22. Ra1 {[%clk 0:01:35]}  Rh8 {[%clk 0:01:34]} 23. g3 {[%clk 0:01:34]}  Rh5 {[%clk 0:01:23]} 24. gxf4 {[%clk 0:01:34]}  Qh8 {[%clk 0:01:20]} 25. Nf1 {[%clk 0:01:32]}  Qh7 {[%clk 0:00:47]} 26. Ra3 {[%clk 0:00:47]}  Rh8 {[%clk 0:00:46]} 27. h4 {[%clk 0:00:47]}  Rxg5 {[%clk 0:00:34]} 28. fxg5 {[%clk 0:00:45]}  Qxh4 {[%clk 0:00:34]} 29. Ng3 {[%clk 0:00:44]}  Qh2+ {[%clk 0:00:24]} 30. Kf1 {[%clk 0:00:44]}  Nb8 {[%clk 0:00:18]} 31. Ra7 {[%clk 0:00:41]}  Rf8 {[%clk 0:00:17]} 32. Nd1 {[%clk 0:00:26]}  Kg8 {[%clk 0:00:17]} 33. Re3 {[%clk 0:00:24]}  Rf4 {[%clk 0:00:13]} 34. Rxc7 {[%clk 0:00:23]}  Rf8 {[%clk 0:00:12]} 35. Ke1 {[%clk 0:00:20]}  Qh4 {[%clk 0:00:07]} 36. Rb7 {[%clk 0:00:19]}  Qxg5 {[%clk 0:00:08]} 37. Rxb6 {[%clk 0:00:20]}  Qf6 {[%clk 0:00:06]} 38. c5 {[%clk 0:00:20]}  Bh6 {[%clk 0:00:05]} 39. Rxd6 {[%clk 0:00:17]}  Qf7 {[%clk 0:00:06]} 40. Re2 {[%clk 0:00:16]}  Bb5 {[%clk 0:00:06]} 41. Ra2 {[%clk 0:00:11]}  Bf4 {[%clk 0:00:04]} 42. Rb6 {[%clk 0:00:09]}  Bxg3 {[%clk 0:00:04]} 43. Qxg3 {[%clk 0:00:10]}  Bd7 {[%clk 0:00:02]} 44. Re2 {[%clk 0:00:06]}  Qf6 {[%clk 0:00:02]} 45. Rxf6 {[%clk 0:00:06]}  Rxf6 {[%clk 0:00:02]} 46. Qxe5 {[%clk 0:00:06]}  Kg7 {[%clk 0:00:02]} 47. Qxb8 {[%clk 0:00:05]}  Bb5 {[%clk 0:00:02]} 48. Qxb5 {[%clk 0:00:05]}  Rf7 {[%clk 0:00:03]} 49. c6 {[%clk 0:00:05]}  g3 {[%clk 0:00:04]} 50. fxg3 {[%clk 0:00:05]}  g5 {[%clk 0:00:04]} 51. d6 {[%clk 0:00:05]}  g4 {[%clk 0:00:05]} 52. Qg5+ {[%clk 0:00:05]}  Kf8 {[%clk 0:00:05]} 53. Rf2 {[%clk 0:00:05]}  Ke8 {[%clk 0:00:03]} 54. Rxf7 {[%clk 0:00:05]}  Kxf7 {[%clk 0:00:02]} 55. Qe7+ {[%clk 0:00:05]}  Kg6 {[%clk 0:00:03]} 56. c7 {[%clk 0:00:05]}  Kh6 {[%clk 0:00:03]} 57. c8=Q {[%clk 0:00:04]}  Kg6 {[%clk 0:00:04]} 58. Qg8+ {[%clk 0:00:04]}  Kh6 {[%clk 0:00:04]} 59. Qeg5# {[%clk 0:00:05]} 1-0


[Site "https://www.chess.com"]